bitfinex/quotes_ETHUSD_20210401
["timestamp","ask_amount","ask_price","bid_price","bid_amount"]
[1617306571574,4.31,1971.1,1971.0,18.014724]
[1617306572180,3.9,1971.1,1971.0,18.014724]
[1617306574204,1.2,1971.4,1971.0,18.014724]
[1617306574405,1.2,1971.4,1971.0,20.774724]
[1617306574635,6.21,1971.4,1971.0,20.774724]
[1617306575232,6.21,1971.4,1971.0,28.382824]
[1617306575431,6.21,1971.4,1971.2,0.38]
[1617306575638,6.21,1971.4,1971.3,8.01]
[1617306575862,6.21,1971.4,1971.3,21.96308716]
[1617306576063,6.21,1971.4,1971.3,18.86]
[1617306576263,1.2,1971.4,1971.3,8.01]
[1617306576462,1.2,1971.5,1971.3,8.01]
[1617306576663,1.2,1971.4,1971.3,15.41]
[1617306576861,1.2,1971.5,1971.3,8.01]
[1617306577060,16.149,1971.6,1971.3,7.6]
[1617306577261,16.149,1971.6,1971.3,7.99]
[1617306577860,16.149,1971.6,1971.3,7.6]
[1617306578061,16.149,1971.6,1971.4,7.6062]
[1617306578463,16.149,1971.6,1971.4,8.0162]
[1617306578863,16.149,1971.6,1971.4,7.6062]
[1617306579662,16.149,1971.6,1971.3,0.4]
[1617306580665,16.149,1971.6,1971.1,0.14]
[1617306580864,16.149,1971.6,1971.1,0.54]
[1617306581479,15.25353962,1971.6,1971.1,0.54]
[1617306581681,15.25353962,1971.6,1971.3,0.39]
[1617306581881,15.25353962,1971.6,1971.2,0.4]
[1617306582083,2.0291752,1971.5,1971.0,18.014724]
[1617306582283,10.7258752,1971.5,1971.0,18.414724]
[1617306582483,2.82,1971.4,1971.0,18.414724]
[1617306582696,2.82,1971.4,1971.0,18.014724]
[1617306582697,3.22,1971.4,1971.0,18.014724]
[1617306583483,10.83065,1971.4,1971.0,18.014724]
[1617306583710,4.44,1971.3,1971.0,18.014724]
[1617306584309,10.2752248,1971.3,1971.0,18.014724]
[1617306584509,7.61143,1971.2,1971.0,18.014724]
[1617306584909,2.74,1971.1,1971.0,18.014724]
[1617306585112,9.3002,1971.1,1971.0,18.014724]
[1617306585316,10.5002,1971.1,1971.0,18.014724]
[1617306585511,9.3002,1971.1,1971.0,18.014724]
[1617306585710,10.5002,1971.1,1971.0,18.014724]
[1617306586337,9.3002,1971.1,1971.0,18.014724]
[1617306587338,12.44845867,1971.1,1971.0,18.014724]
[1617306587740,6.5602,1971.1,1971.0,18.014724]
[1617306587943,6.5602,1971.1,1971.0,33.964724]
[1617306588243,15.25353962,1971.6,1971.0,33.964724]
[1617306588440,15.25353962,1971.6,1971.3,0.38]
[1617306590660,15.25353962,1971.6,1971.0,28.158964]
[1617306590861,15.25353962,1971.6,1971.0,18.404724]
[1617306591060,15.66353962,1971.6,1971.0,18.404724]
[1617306592100,15.66353962,1971.6,1971.0,26.013744]
[1617306592904,15.66353962,1971.6,1971.0,18.014724]
[1617306592905,27.66,1971.1,1971.0,18.014724]
[1617306593114,34.7845,1971.1,1971.0,18.014724]
[1617306593705,37.52067635,1971.1,1971.0,18.014724]
[1617306594306,36.32067635,1971.1,1971.0,18.014724]
[1617306594702,37.52067635,1971.1,1971.0,18.014724]
[1617306595706,37.52067635,1971.1,1971.0,12.9393436]
[1617306595903,37.52067635,1971.1,1971.0,7.8639632]
[1617306597630,37.52067635,1971.1,1971.0,7.7139632]
[1617306600054,37.52067635,1971.1,1971.0,6.32e-05]
[1617306600858,44.52067635,1971.1,1971.0,6.32e-05]
[1617306602680,43.32067635,1971.1,1971.0,6.32e-05]
[1617306602880,35.91067635,1971.1,1971.0,6.32e-05]
[1617306603280,5.9245,1971.1,1971.0,6.32e-05]
[1617306603484,33.80548,1971.3,1971.0,6.32e-05]
[1617306603682,5.06,1971.2,1971.0,6.32e-05]
[1617306604484,0.4,1971.1,1971.0,6.32e-05]
[1617306605906,54.06327635,1971.1,1971.0,6.32e-05]
[1617306606110,52.55736264,1971.1,1971.0,6.32e-05]
[1617306606305,55.29353899,1971.1,1971.0,6.32e-05]
[1617306606504,54.06327635,1971.1,1971.0,6.32e-05]
[1617306607104,59.07327635,1971.1,1971.0,6.32e-05]
[1617306607347,74.20627635,1971.1,1971.0,6.32e-05]
[1617306608552,81.20627635,1971.1,1971.0,6.32e-05]
[1617306609151,74.20627635,1971.1,1971.0,6.32e-05]
[1617306609752,81.20627635,1971.1,1971.0,6.32e-05]
[1617306610355,89.20627635,1971.1,1970.2,0.4]
[1617306610558,89.20627635,1971.1,1970.1,1.0]
[1617306610559,1.59,1970.7,1970.1,1.0]
[1617306610756,9.1936,1970.7,1970.1,1.41]
[1617306610954,0.4,1970.6,1970.1,1.41]
[1617306611156,0.4,1970.5,1970.1,1.0]
[1617306611361,4.45803934,1970.6,1970.1,1.0]
[1617306611559,0.7687,1970.6,1970.2,0.39]
[1617306612357,0.7687,1970.6,1970.1,1.0]
[1617306612582,8.38268,1970.6,1970.1,1.0]
[1617306612779,3.1,1970.5,1970.1,1.0]
[1617306612980,0.39,1970.4,1970.1,1.0]
[1617306613380,9.64303635,1970.5,1970.2,0.4]
[1617306613581,8.38268,1970.6,1970.2,0.4]
[1617306613582,2.86,1970.4,1970.2,0.4]
[1617306613783,0.7687,1970.6,1970.1,1.0]
[1617306613784,3.68933934,1970.3,1970.1,1.0]
[1617306613986,9.0575,1970.3,1970.1,1.0]
[1617306614182,25.91,1970.2,1970.1,1.0]
[1617306614383,25.91,1970.2,1969.7,2.0]
[1617306614384,5.96,1970.1,1969.7,2.0]
[1617306614586,11.29764374,1970.0,1969.7,2.0]
[1617306614788,11.29764374,1970.0,1969.1,1.0]
[1617306614789,77.14617635,1969.8,1969.1,1.0]
[1617306614986,7.99259055,1969.7,1969.1,1.0]
[1617306615216,29.79,1969.2,1969.1,1.0]
[1617306615416,39.88298175,1969.2,1969.1,1.0]
[1617306615615,30.15,1969.0,1968.2,0.39]
[1617306615817,3.64939824,1968.9,1968.3,0.4]
[1617306616016,0.364,1968.8,1968.3,0.4]
[1617306616216,14.3493,1968.8,1968.3,0.4]
[1617306616415,2.92,1968.7,1968.4,0.38]
[1617306616812,9.4738,1968.8,1968.1,1.14]
[1617306617013,9.4738,1968.8,1968.3,0.41]
[1617306617415,9.4738,1968.8,1968.4,0.39]
[1617306617615,12.2338,1968.8,1968.4,0.39]
[1617306618028,12.2338,1968.8,1968.1,1.14]
[1617306618228,12.2338,1968.8,1968.3,0.38]
[1617306619029,12.2338,1968.8,1968.1,1.14]
[1617306619233,12.2338,1968.8,1968.1,1.53]
[1617306619430,3.06,1968.7,1968.1,1.14]
[1617306619632,0.301,1968.6,1968.1,2.16179247]
[1617306619835,4.33039824,1968.6,1968.1,1.14]
[1617306620033,4.33039824,1968.6,1968.1,1.0]
[1617306620034,6.12,1968.5,1968.1,1.0]
[1617306620237,9.1098,1968.8,1968.1,1.0]
[1617306620476,8.3453,1968.8,1968.7,0.4]
[1617306620678,8.3453,1968.8,1968.5,7.5667]
[1617306620872,8.3453,1968.8,1968.6,0.39]
[1617306621474,15.0728,1969.1,1968.8,0.4]
[1617306621677,15.0728,1969.1,1969.0,7.55]
[1617306621879,15.0728,1969.1,1968.6,1.2]
[1617306622075,15.0728,1969.1,1969.0,6.9]
[1617306622475,0.16107801,1969.7,1969.0,6.9]
[1617306622679,0.16107801,1969.7,1969.0,14.71753704]
[1617306623284,0.16107801,1969.7,1969.6,0.38]
[1617306623487,0.16107801,1969.7,1969.6,7.99446]
[1617306624286,10.26107801,1969.7,1969.2,10.15348]
[1617306624494,3.64939824,1969.6,1968.9,0.4]
[1617306624688,3.97139824,1969.6,1968.8,12.15597]
[1617306625086,0.41,1969.5,1968.8,12.53597]
[1617306625285,3.97139824,1969.6,1968.9,0.38]
[1617306625718,3.28,1969.5,1969.2,0.4]
[1617306625918,3.28,1969.5,1969.4,0.4]
[1617306626119,10.26107801,1969.7,1969.4,0.4]
[1617306626517,10.01107392,1969.5,1969.4,0.4]
[1617306626717,0.16107392,1969.5,1969.4,0.4]
[1617306626917,0.16107392,1969.5,1969.4,8.01526]
[1617306627922,0.16107392,1969.5,1969.4,9.21526]
[1617306627923,3.92e-06,1969.5,1969.4,9.21526]
[1617306628124,29.6402,1970.6,1969.4,17.21526]
[1617306628125,14.7875,1970.6,1969.4,17.21526]
[1617306628344,14.7875,1970.6,1970.3,0.38]
[1617306628545,14.7875,1970.6,1970.3,6.3298]
[1617306628741,1.0,1970.9,1970.5,8.75]
[1617306629339,1.0,1970.9,1970.6,7.61021]
[1617306629539,1.0,1970.9,1970.8,16.88]
[1617306629743,1.0,1970.9,1970.8,25.0416]
[1617306629939,1.0,1970.9,1970.8,23.8416]
[1617306630338,1.0,1970.9,1970.8,7.3416]
[1617306630542,1.0,1970.9,1970.8,14.57011]
[1617306630748,1.0,1970.9,1970.8,6.9616]
[1617306630962,1.0,1970.9,1970.2,0.4]
[1617306630963,1.0,1970.9,1970.3,0.4]
[1617306631162,0.315,1970.8,1969.7,0.09132494]
[1617306631362,0.315,1970.8,1970.2,2.0]
[1617306631563,3.34,1970.7,1970.2,2.0]
[1617306631763,7.1469,1970.7,1970.2,2.0]
[1617306631960,0.39,1970.6,1970.2,2.0]
[1617306632562,0.39,1970.6,1969.8,0.38]
[1617306632563,1.87,1970.6,1969.8,0.38]
[1617306633162,6.21,1970.5,1969.8,0.38]
[1617306633363,0.725,1970.4,1969.7,0.14]
[1617306633586,0.39,1970.3,1969.7,0.14]
[1617306633985,0.39,1970.2,1969.6,7.61379]
[1617306634192,4.33339824,1970.2,1969.5,10.56172]
[1617306634396,15.4863,1970.1,1969.0,23.58690829]
[1617306634590,0.371,1969.9,1969.4,0.38]
[1617306637008,0.371,1969.9,1969.2,0.38]
[1617306637009,3.64939824,1969.8,1969.2,0.38]
[1617306637804,7.45799824,1969.8,1969.2,0.38]
[1617306638005,3.48717635,1969.9,1969.2,0.38]
[1617306638207,0.751,1969.9,1969.2,0.38]
[1617306638609,0.371,1969.9,1969.4,0.4]
[1617306638831,18.10247635,1970.1,1969.5,0.38]
[1617306639030,15.3663,1970.1,1969.5,0.38]
[1617306639230,15.3663,1970.1,1969.5,7.99446]
[1617306639428,15.3663,1970.1,1969.6,0.4]
[1617306639631,15.3663,1970.1,1969.7,0.4]
[1617306640428,15.3663,1970.1,1969.5,7.61446]
[1617306640630,15.3663,1970.1,1969.6,0.38]
[1617306642057,15.3663,1970.1,1969.6,7.99406]
[1617306642456,15.3663,1970.1,1969.7,0.39]
[1617306642862,15.0863,1970.1,1969.9,0.39]
[1617306643859,13.7011,1970.6,1970.0,0.4]
[1617306644085,13.7011,1970.6,1970.2,0.38]
[1617306644886,9.3758,1970.9,1970.3,0.38]
[1617306645087,9.3758,1970.9,1970.2,0.38]
[1617306645088,9.3758,1970.9,1970.6,0.38]
[1617306645285,1.0,1970.9,1970.6,0.38]
[1617306646485,1.0,1970.9,1970.5,8.0866]
[1617306646708,1.0,1970.9,1970.5,8.4966]
[1617306647108,1.0,1970.9,1970.5,8.0866]
[1617306647311,1.0,1970.9,1970.4,0.14]
[1617306647511,1.0,1970.9,1970.1,0.09132494]
[1617306647512,5.20615,1970.9,1970.1,0.09132494]
[1617306647713,0.315,1970.8,1970.1,0.09132494]
[1617306647912,0.315,1970.8,1970.0,0.09132494]
[1617306648112,0.315,1970.8,1969.9,7.15]
[1617306648113,0.315,1970.8,1969.9,7.53]
[1617306648308,0.28,1970.8,1970.1,5.4]
[1617306648510,0.28,1970.8,1970.3,0.39]
[1617306648710,0.28,1970.8,1970.3,0.53]
[1617306649111,0.28,1970.8,1970.3,0.14]
[1617306651338,0.66,1970.8,1970.3,0.14]
[1617306651957,1.14,1970.9,1970.4,7.3]
[1617306652358,11.66604,1970.9,1970.4,7.3]
[1617306652960,4.94604,1970.9,1970.5,0.39]
[1617306653161,4.80604,1970.9,1970.5,0.39]
[1617306653364,4.80604,1970.9,1970.4,7.69]
[1617306654160,4.80604,1970.9,1970.4,0.39]
[1617306654586,4.80604,1970.9,1970.3,7.75138]
[1617306654786,4.80604,1970.9,1970.3,8.16138]
[1617306655190,1.0,1970.9,1970.5,0.4]
[1617306655590,1.0,1970.9,1970.6,0.38]
[1617306655993,1.0,1970.9,1970.8,24.2]
[1617306656188,1.0,1970.9,1970.8,27.88]
[1617306656390,1.0,1970.9,1970.8,35.48989]
[1617306656789,1.0,1970.9,1970.8,40.49989]
[1617306657407,1.0,1970.9,1970.8,16.69989]
[1617306658007,1.0,1970.9,1970.8,11.68989]
[1617306658612,1.0,1970.9,1970.8,11.28989]
[1617306659010,1.0,1970.9,1970.8,11.67989]
[1617306659831,1.0,1970.9,1970.8,18.72989]
[1617306660031,1.0,1970.9,1970.8,11.67989]
[1617306660635,1.0,1970.9,1970.8,7.99989]
[1617306660834,1.0,1970.9,1970.8,15.34989]
[1617306661035,1.0,1970.9,1970.8,7.99989]
[1617306661637,1.0,1970.9,1970.8,7.60989]
[1617306661843,1.0,1970.9,1970.4,10.14681]
[1617306662041,3.59346912,1970.8,1970.2,0.09132494]
[1617306662240,3.59346912,1970.8,1969.9,2.28]
[1617306662507,4.93346912,1970.8,1970.0,0.09132494]
[1617306662706,4.93346912,1970.8,1969.9,2.28]
[1617306662907,7.61426,1970.4,1969.9,2.0]
[1617306663104,3.54,1970.3,1969.9,2.0]
[1617306664104,11.15451,1970.3,1969.9,2.0]
[1617306664305,3.8073,1970.2,1969.9,2.0]
[1617306664507,7.40076912,1970.2,1969.9,2.0]
[1617306664918,3.18,1970.1,1969.6,1.41]
[1617306665117,3.18,1970.1,1969.6,1.0]
[1617306666316,2.92,1970.0,1969.6,1.0]
[1617306666519,2.92,1970.0,1969.6,1.39]
[1617306666917,2.92,1970.0,1969.6,1.0]
[1617306667116,7.54076912,1970.2,1969.6,1.0]
[1617306667317,8.74076912,1970.2,1969.6,1.0]
[1617306667519,7.61549,1970.1,1969.6,1.0]
[1617306667717,3.02,1970.0,1969.6,1.0]
[1617306669319,8.74076912,1970.2,1969.6,1.0]
[1617306669518,9.13076912,1970.2,1969.6,1.0]
[1617306670119,16.74585912,1970.2,1969.6,1.0]
[1617306670337,3.92,1970.1,1969.6,1.0]
[1617306671138,3.87,1970.1,1969.6,1.0]
[1617306672135,11.48548,1970.1,1969.6,1.0]
[1617306672338,3.26,1970.0,1969.6,1.0]
[1617306672537,7.06789,1970.0,1969.6,1.0]
[1617306672736,7.06789,1970.0,1969.7,0.38]
[1617306672964,3.80789,1970.0,1969.7,0.38]
[1617306673165,1.36104122,1970.1,1969.8,0.38]
[1617306673365,1.36104122,1970.1,1969.6,1.0]
[1617306673765,1.36104122,1970.1,1969.6,1.4]
[1617306673965,1.36104122,1970.1,1969.7,0.41]
[1617306675365,1.36104122,1970.1,1969.6,1.0]
[1617306675588,1.36104122,1970.1,1969.6,1.39]
[1617306676788,1.36104122,1970.1,1969.6,1.0]
[1617306676993,5.55856122,1970.1,1969.6,1.0]
[1617306677187,5.16856122,1970.1,1969.6,1.0]
[1617306677388,3.96856122,1970.1,1969.6,1.0]
[1617306677589,3.96856122,1970.1,1969.7,0.4]
[1617306677789,3.96856122,1970.1,1969.7,6.7865]
[1617306678217,0.16104122,1970.1,1969.7,14.40055]
[1617306678416,0.16104122,1970.1,1969.7,18.36055]
[1617306678626,0.16104122,1970.1,1970.0,29.79]
[1617306678826,1.22e-06,1970.1,1970.0,29.79]
[1617306679218,1.22e-06,1970.1,1970.0,42.42206]
[1617306681434,1.22e-06,1970.1,1970.0,51.21114335]
[1617306684469,1.22e-06,1970.1,1970.0,52.41114335]
[1617306684669,1.0,1970.9,1970.1,4.29132494]
[1617306684872,1.0,1970.9,1970.7,0.4]
[1617306685071,1.0,1970.9,1970.8,22.31]
[1617306685268,1.0,1970.9,1970.8,26.63]
[1617306686294,1.0,1970.9,1970.8,34.23786]
[1617306687297,1.0,1970.9,1970.8,39.24786]
[1617306687696,1.0,1970.9,1970.8,16.93786]
[1617306687898,1.0,1970.9,1970.8,12.61786]
[1617306688712,1.0,1970.9,1970.8,7.60786]
[1617306690714,1.0,1970.9,1970.7,10.14381]
[1617306691740,1.0,1970.9,1970.8,5.01]
[1617306692141,1.0,1970.9,1970.7,10.14381]
[1617306692343,1.0,1970.9,1970.5,2.0]
[1617306693145,1.0,1970.9,1969.7,7.0]
[1617306693146,0.41,1970.6,1969.7,7.0]
[1617306693344,0.39932494,1970.5,1969.9,0.14]
[1617306693543,0.39932494,1970.5,1969.6,0.14]
[1617306693741,0.39932494,1970.5,1969.3,0.01165472]
[1617306693973,0.39932494,1970.5,1969.2,0.01748208]
[1617306693974,0.09132494,1970.0,1969.9,2.0]
[1617306694172,10.15308,1970.0,1969.9,2.0]
[1617306694370,26.50308,1970.0,1969.9,2.0]
[1617306694973,12.78132398,1969.8,1968.9,7.01169986]
[1617306695176,3.80771,1969.4,1969.0,0.14]
[1617306695378,3.80771,1969.4,1969.1,2.0]
[1617306695379,0.41,1969.3,1969.1,2.0]
[1617306695572,3.80771,1969.4,1969.1,2.0]
[1617306696175,7.61567,1969.2,1969.1,2.0]
[1617306696609,3.80771,1969.4,1969.1,2.0]
[1617306696810,3.80771,1969.4,1969.1,7.01]
[1617306697009,10.56317,1969.6,1969.1,7.01]
[1617306697211,0.41,1969.6,1969.1,7.01]
[1617306697810,0.41,1969.6,1969.2,5.01]
[1617306698012,0.41,1969.6,1969.3,5.01]
[1617306698209,0.41,1969.6,1969.2,5.01]
[1617306699010,8.02466,1969.6,1969.2,5.01]
[1617306700222,0.4,1969.5,1969.2,5.01]
[1617306701626,7.61466,1969.6,1969.2,5.01]
[1617306701836,8.02466,1969.6,1969.2,5.01]
[1617306704239,0.41,1969.6,1969.2,5.01]
[1617306704665,0.41,1969.6,1969.2,4.66]
[1617306705464,0.38,1969.5,1969.2,4.66]
[1617306706065,0.38,1969.5,1969.1,2.0]
[1617306706266,0.38,1969.5,1969.1,7.01]
[1617306706466,10.15372,1969.8,1969.1,7.01]
[1617306706667,0.09132494,1969.7,1969.1,2.0]
[1617306706866,0.47132494,1969.7,1969.1,2.0]
[1617306707093,8.08605494,1969.7,1969.1,2.0]
[1617306707295,2.030592,1969.8,1969.2,0.38]
[1617306707694,2.310592,1969.8,1969.2,0.38]
[1617306707893,0.28,1969.8,1969.2,0.38]
[1617306708093,0.28,1969.8,1969.2,5.39]
[1617306708292,0.28,1969.8,1969.4,5.01]
[1617306708497,0.39,1969.9,1969.4,5.01]
[1617306708693,0.48132494,1969.9,1969.4,5.01]
[1617306708892,1.73842494,1970.0,1969.4,5.4]
[1617306709093,7.6139,1969.9,1969.4,5.4]
[1617306709494,12.13492962,1969.9,1969.4,5.01]
[1617306709753,11.73492962,1969.9,1969.4,5.01]
[1617306709953,11.73492962,1969.9,1969.3,0.54]
[1617306710154,24.46018932,1969.9,1969.3,0.54]
[1617306710355,7.6153,1969.7,1969.3,0.14]
[1617306712762,11.73632962,1969.7,1969.3,0.14]
[1617306712963,3.14,1969.6,1969.3,0.14]
[1617306714767,7.6153,1969.7,1969.3,5.15]
[1617306715373,12.7954612,1969.6,1969.1,2.01155794]
[1617306715574,12.7954612,1969.6,1969.1,2.0]
[1617306715575,1.2,1969.5,1969.1,2.0]
[1617306715771,6.96272283,1969.4,1969.1,2.0]
[1617306715969,4.61,1969.3,1969.1,2.0]
[1617306716171,11.4409,1969.3,1969.1,2.0]
[1617306716374,23.81509159,1969.2,1969.1,2.0]
[1617306716768,35.34035129,1969.2,1969.1,2.0]
[1617306717591,35.73035129,1969.2,1969.1,2.0]
[1617306718392,8.81761,1969.3,1969.1,2.0]
[1617306718594,0.38,1969.2,1969.1,2.0]
[1617306718792,38.1552597,1969.2,1969.1,2.0]
[1617306719592,39.3552597,1969.2,1969.1,2.0]
[1617306723243,1.58,1969.2,1969.1,2.0]
[1617306724042,14.15,1969.2,1969.1,2.0]
[1617306724245,33.2930897,1969.2,1969.1,2.0]
[1617306725463,21.76783,1969.2,1969.1,2.0]
[1617306725662,33.2930897,1969.2,1969.1,2.0]
[1617306725862,21.76783,1969.2,1969.1,2.0]
[1617306726062,33.2930897,1969.2,1969.1,2.0]
[1617306726868,21.76783,1969.2,1969.1,2.0]
[1617306727063,33.2930897,1969.2,1969.1,2.0]
[1617306727267,21.76783,1969.2,1969.1,2.0]
[1617306727465,33.2930897,1969.2,1969.1,2.0]
[1617306727665,21.76783,1969.2,1969.1,2.0]
[1617306727867,33.2930897,1969.2,1969.1,2.0]
[1617306728112,21.76783,1969.2,1969.1,2.0]
[1617306729913,8.81783,1969.2,1969.1,2.0]
[1617306731120,1.2,1969.2,1969.1,2.0]
[1617306731318,29.0203763,1969.7,1969.1,2.0]
[1617306731319,7.61554,1969.6,1969.1,2.0]
[1617306731522,40.545636,1969.7,1969.4,0.41]
[1617306731523,15.0570863,1969.7,1969.4,0.41]
[1617306731720,15.0570863,1969.7,1969.4,6.7072]
[1617306731921,12.5182,1969.7,1969.4,6.7072]
[1617306732123,8.5747,1970.1,1969.4,6.7072]
[1617306732319,54.0481597,1970.3,1969.4,6.7072]
[1617306732521,54.0481597,1970.3,1969.6,0.53]
[1617306732720,55.2481597,1970.3,1969.6,0.53]
[1617306732918,57.7863462,1970.3,1969.6,0.53]
[1617306733346,49.2610865,1970.3,1969.6,0.53]
[1617306733548,1.2,1970.1,1969.6,0.14]
[1617306733746,12.62144,1970.1,1969.6,0.14]
[1617306733944,5.00723,1970.1,1969.6,0.14]
[1617306734545,8.81446,1970.1,1969.6,0.14]
[1617306734750,9.22446,1970.1,1969.6,0.14]
[1617306734946,8.81488,1969.9,1969.6,0.14]
[1617306735968,1.2,1969.9,1969.4,0.39]
[1617306736768,1.2,1969.9,1969.4,5.4]
[1617306736968,1.2,1969.9,1969.5,0.4]
[1617306737770,1.2,1969.9,1969.7,0.39]
[1617306737973,72.0163765,1970.3,1969.7,0.39]
[1617306737974,66.9397865,1970.3,1969.7,0.39]
[1617306738174,12.68999904,1970.2,1969.8,0.39]
[1617306738378,39.8209597,1970.3,1970.1,0.4]
[1617306738600,14.2,1970.3,1970.1,6.4443]
[1617306738998,14.2,1970.3,1970.1,14.0552]
[1617306739198,14.2,1970.3,1970.1,18.17622962]
[1617306739397,14.2,1970.3,1970.1,21.25622962]
[1617306739597,14.2,1970.3,1970.1,17.1352]
[1617306740599,14.2,1970.3,1970.1,16.7352]
[1617306740798,14.2,1970.3,1970.1,17.1152]
[1617306740999,14.2,1970.3,1970.1,9.5043]
[1617306741239,14.2,1970.3,1970.1,6.4243]
[1617306743745,1.0,1970.4,1970.1,6.0143]
[1617306744144,1.0,1970.4,1970.1,13.62514]
[1617306744548,1.0,1970.4,1970.2,0.41]
[1617306744946,0.16101261,1970.3,1970.2,0.41]
[1617306745345,0.16101261,1970.3,1970.2,10.55676]
[1617306745546,0.16101261,1970.3,1970.2,22.39132566]
[1617306746374,0.16101261,1970.3,1970.2,18.28676]
[1617306750399,0.16101261,1970.3,1970.2,18.18676]
[1617306751195,0.16101261,1970.3,1970.2,18.21224835]
[1617306751397,0.16101261,1970.3,1970.2,17.90224835]
[1617306752420,0.16101261,1970.3,1970.2,18.21224835]
[1617306752821,0.16101261,1970.3,1970.2,18.30224835]
[1617306754023,0.16101261,1970.3,1970.2,17.90224835]
[1617306758897,1.0,1970.4,1970.2,24.44484835]
[1617306759096,1.0,1970.9,1970.4,29.4]
[1617306759299,1.0,1970.9,1970.8,27.25]
[1617306759505,1.0,1970.9,1970.8,33.9033]
[1617306759506,0.7355048,1970.9,1970.8,33.9033]
[1617306759900,0.7355048,1970.9,1970.8,48.4633]
[1617306760101,0.7355048,1970.9,1970.8,49.3543]
[1617306761305,0.7355048,1970.9,1970.8,56.96184]
[1617306761901,0.7355048,1970.9,1970.8,48.07084]
[1617306762321,0.7355048,1970.9,1970.8,56.07084]
[1617306762523,0.7355048,1970.9,1970.8,48.07084]
[1617306763726,0.7355048,1970.9,1970.8,56.07084]
[1617306764528,0.7355048,1970.9,1970.8,22.16754]
[1617306764750,0.7355048,1970.9,1970.8,7.60754]
[1617306768574,0.7355048,1970.9,1970.8,14.80754]
[1617306769374,0.7355048,1970.9,1970.8,7.60754]
[1617306769574,0.7355048,1970.9,1970.8,12.61754]
[1617306771196,0.7355048,1970.9,1970.8,12.64302835]
[1617306772844,0.7355048,1970.9,1970.8,20.64302835]
[1617306773044,0.7355048,1970.9,1970.8,12.64302835]
[1617306773245,0.7355048,1970.9,1970.8,16.16302835]
[1617306773443,0.7355048,1970.9,1970.8,16.33214187]
[1617306775246,0.7205048,1970.9,1970.8,16.33214187]
[1617306776848,0.7205048,1970.9,1970.8,24.33214187]
[1617306777048,0.7205048,1970.9,1970.8,16.33214187]
[1617306777448,0.7205048,1970.9,1970.8,24.33214187]
[1617306778083,0.7205048,1970.9,1970.8,16.33214187]
[1617306778880,0.6705048,1970.9,1970.8,16.33214187]
[1617306779080,0.6705048,1970.9,1970.8,16.72214187]
[1617306779479,0.6705048,1970.9,1970.8,16.33214187]
[1617306782296,0.6705048,1970.9,1970.8,16.72214187]
[1617306782501,0.6705048,1970.9,1970.8,25.82214187]
[1617306782900,0.6705048,1970.9,1970.8,33.82214187]
[1617306784326,0.6705048,1970.9,1970.8,40.07214187]
[1617306784927,0.6705048,1970.9,1970.8,47.07214187]
[1617306785124,11.23848752,1971.1,1970.8,47.07214187]
[1617306785326,11.23848752,1971.1,1971.0,39.91626]
[1617306785525,11.23848752,1971.1,1971.0,46.76626]
[1617306785947,11.23848752,1971.1,1971.0,39.76626]
[1617306786948,11.23848752,1971.1,1971.0,46.76626]
[1617306787348,11.18848752,1971.1,1971.0,46.76626]
[1617306788602,11.18848752,1971.1,1971.0,39.76626]
[1617306789605,7.52e-06,1971.1,1971.0,39.76626]
[1617306789812,2.0,1971.4,1971.0,47.76626]
[1617306790011,1.0,1971.4,1971.3,29.79]
[1617306790215,1.0,1971.9,1971.7,0.38]
[1617306790412,10.19574718,1972.0,1971.8,16.45]
[1617306790609,10.19574718,1972.0,1971.9,17.55]
[1617306790806,10.19574718,1972.0,1971.9,7.0]
[1617306791007,1.2,1972.2,1971.9,7.53]
[1617306791210,1.2,1972.3,1971.9,15.15996835]
[1617306791411,1.0,1972.4,1972.1,5.4]
[1617306791613,1.0,1972.4,1972.3,25.41]
[1617306792007,1.0,1972.4,1972.3,30.42]
[1617306792412,1.0,1972.4,1972.3,30.54384551]
[1617306792606,1.0,1972.4,1972.3,35.54384551]
[1617306792805,1.0,1972.4,1972.3,50.54384551]
[1617306793210,0.0001,1972.4,1972.3,50.54384551]
[1617306797049,0.16094117,1972.4,1972.3,50.54384551]
[1617306798450,0.16094117,1972.4,1972.3,42.13384551]
[1617306798651,0.16094117,1972.4,1972.3,42.54384551]
[1617306801301,0.16094117,1972.4,1972.3,42.56933386]
[1617306801518,0.16094117,1972.4,1972.3,42.15933386]
[1617306801920,0.16094117,1972.4,1972.3,50.54933386]
[1617306802318,4.117e-05,1972.4,1972.3,50.54933386]
[1617306803323,4.117e-05,1972.4,1972.3,42.54933386]
[1617306803522,4.117e-05,1972.4,1972.3,50.54933386]
[1617306803921,4.117e-05,1972.4,1972.3,59.09183386]
[1617306805325,4.117e-05,1972.4,1972.3,60.55954885]
[1617306805726,4.117e-05,1972.4,1972.3,59.09183386]
[1617306807354,7.59923,1974.0,1972.9,29.4]
[1617306807560,1.0,1974.4,1972.9,29.4]
[1617306807561,1.0,1973.9,1973.6,0.39]
[1617306807758,1.0,1973.9,1973.6,10.0746]
[1617306808160,10.39311277,1974.3,1973.7,19.2]